bitfinex/quotes_ETHUSD_20251122
["timestamp","ask_amount","ask_price","bid_price","bid_amount"]
[1763776704978,0.2568,2778.2,2778.1,0.001]
[1763776706033,0.7770186,2778.3,2778.1,0.001]
[1763776706284,0.2568,2778.2,2778.1,0.001]
[1763776707463,1.05984828,2778.3,2778.1,0.001]
[1763776708946,0.7770186,2778.3,2778.2,0.9494]
[1763776710150,0.7770186,2778.3,2778.2,0.4681]
[1763776710384,4.68310141,2778.5,2778.2,0.9494]
[1763776710589,0.90699264,2778.4,2778.2,0.9494]
[1763776710990,0.90699264,2778.4,2778.3,0.4681]
[1763776712888,4.72704502,2778.4,2778.3,0.4681]
[1763776713654,4.98384502,2778.4,2778.1,0.001]
[1763776713855,4.72704502,2778.2,2778.1,0.001]
[1763776714288,4.72704502,2778.2,2778.1,0.4691]
[1763776715387,4.72704502,2778.2,2778.1,0.9213]
[1763776716785,4.72704502,2778.2,2778.1,0.4691]
[1763776718915,4.72704502,2778.2,2778.1,1.1059]
[1763776719513,4.72704502,2778.2,2778.1,0.6537]
[1763776719674,4.72704502,2778.2,2778.1,0.4691]
[1763776720571,5.29206645,2778.2,2778.1,0.4691]
[1763776720770,5.29206645,2778.2,2778.1,0.001]
[1763776720991,6.0780731,2778.2,2778.1,0.001]
[1763776721163,6.85541618,2778.2,2778.1,0.001]
[1763776721365,6.86563633,2778.2,2778.1,0.001]
[1763776721659,2.24935715,2778.2,2778.1,1.1354]
[1763776721860,0.002,2778.6,2778.2,0.405504]
[1763776722064,0.002,2778.6,2778.5,0.4976]
[1763776722304,0.002,2778.6,2778.5,0.9498]
[1763776723268,0.002,2778.6,2778.5,1.355304]
[1763776724383,0.002,2778.6,2778.5,0.4976]
[1763776724680,3.82205238,2778.6,2778.5,0.9498]
[1763776724878,4.72904502,2778.6,2778.5,0.9498]
[1763776726911,4.72904502,2778.6,2778.5,0.4976]
[1763776727112,4.72904502,2778.6,2778.5,0.9498]
[1763776729888,3.24701337,2778.6,2778.5,0.9498]
[1763776730191,0.90899264,2778.6,2778.5,1.355304]
[1763776730614,3.24701337,2778.6,2778.5,0.903104]
[1763776730819,3.24701337,2778.6,2778.5,1.355304]
[1763776731715,0.90899264,2778.6,2778.5,1.355304]
[1763776732303,3.24701337,2778.6,2778.5,1.355304]
[1763776733720,0.90899264,2778.6,2778.5,1.355304]
[1763776734219,3.24701337,2778.6,2778.5,1.355304]
[1763776735609,0.90899264,2778.6,2778.5,1.355304]
[1763776736526,0.90899264,2778.6,2778.5,1.356304]
[1763776738700,0.002,2778.6,2778.5,3.24212473]
[1763776738899,0.002,2778.9,2778.6,0.405504]
[1763776739100,0.002,2779.2,2778.9,0.903104]
[1763776739313,0.002,2779.3,2779.2,0.405504]
[1763776739499,0.002,2779.3,2779.2,1.355304]
[1763776739691,0.002,2779.3,2779.2,1.74309647]
[1763776740028,0.002,2779.3,2779.2,1.355304]
[1763776742240,0.002,2779.3,2779.2,3.69332473]
[1763776742639,0.002,2779.3,2779.2,1.355304]
[1763776746529,0.002,2779.3,2779.2,3.69332473]
[1763776748306,0.002,2779.3,2779.2,1.355304]
[1763776748944,0.002,2779.3,2779.2,1.75751918]
[1763776753113,0.002,2779.3,2779.2,3.69332473]
[1763776753854,0.002,2779.3,2779.2,6.03134546]
[1763776754041,0.002,2779.3,2779.2,3.7293063]
[1763776754543,0.002,2779.3,2779.2,3.69332473]
[1763776754749,0.002,2779.3,2779.2,6.03134546]
[1763776755046,0.002,2779.3,2779.2,6.70344371]
[1763776755449,0.002,2779.3,2779.2,6.84766399]
[1763776758154,0.002,2779.3,2779.2,9.17426599]
[1763776758465,0.002,2779.3,2779.2,12.94828442]
[1763776759240,0.002,2779.3,2779.2,10.62168242]
[1763776761466,0.002,2779.3,2779.2,14.42068242]
[1763776761672,0.002,2779.3,2779.2,10.62168242]
[1763776762470,0.002,2779.3,2779.2,7.87815769]
[1763776762636,0.002,2779.3,2779.2,7.73393741]
[1763776762977,0.002,2779.3,2779.2,8.13944141]
[1763776763833,0.002,2779.3,2779.2,10.47746214]
[1763776764471,0.002,2779.3,2779.2,6.66746214]
[1763776764659,0.002,2779.3,2779.2,6.70344371]
[1763776764861,0.002,2779.3,2779.2,6.66746214]
[1763776765261,0.002,2779.3,2779.2,6.81166162]
[1763776766743,0.002,2779.3,2779.2,4.47364089]
[1763776767786,0.002,2779.3,2779.2,0.78031616]
[1763776768071,0.002,2779.3,2779.1,0.001]
[1763776768470,0.002,2779.3,2779.1,0.406504]
[1763776768678,0.002,2779.3,2779.1,0.001]
[1763776768863,0.002,2779.3,2779.1,0.406504]
[1763776769178,0.002,2779.3,2779.2,0.4912]
[1763776769366,0.002,2779.3,2779.2,1.395104]
[1763776769577,0.002,2779.3,2779.2,1.78698647]
[1763776770042,0.002,2779.3,2779.2,1.395104]
[1763776770863,0.002,2779.3,2779.2,0.405504]
[1763776771057,0.002,2779.3,2779.2,0.896704]
[1763776772460,0.002,2779.3,2779.2,1.395104]
[1763776773927,0.002,2779.3,2779.2,0.405504]
[1763776774098,0.002,2779.3,2779.2,0.896704]
[1763776774551,0.002,2779.3,2779.2,1.395104]
[1763776775287,0.002,2779.3,2779.2,1.43108557]
[1763776776618,0.002,2779.3,2779.2,1.395104]
[1763776777807,0.002,2779.3,2779.2,0.896704]
[1763776778883,0.002,2779.3,2779.2,0.405504]
[1763776779208,0.2668,2779.3,2779.2,0.405504]
[1763776780827,0.5316,2779.3,2779.1,0.001]
[1763776781002,0.30897868,2779.2,2779.1,0.001]
[1763776781306,0.57377868,2779.2,2779.1,0.001]
[1763776784787,3.81695816,2779.2,2779.1,0.001]
[1763776785425,1.21597132,2779.2,2779.1,0.001]
[1763776785628,1.19399264,2779.2,2779.1,0.001]
[1763776785835,0.92919264,2779.2,2779.1,0.001]
[1763776786253,1.19399264,2779.2,2779.1,0.001]
[1763776788984,0.2624,2779.0,2778.8,0.001]
[1763776789157,2.44978684,2778.9,2778.8,0.001]
[1763776789309,0.74055795,2778.9,2778.8,0.001]
[1763776789651,1.38275059,2778.9,2778.8,0.001]
[1763776789806,0.1136,2778.9,2778.8,0.001]
[1763776790354,0.67844302,2778.9,2778.8,0.001]
[1763776793233,1.85023566,2778.9,2778.8,0.001]
[1763776793417,0.94324302,2778.9,2778.8,0.001]
[1763776793937,0.90699264,2779.1,2778.8,0.001]
[1763776793938,0.002,2779.3,2778.9,0.405504]
[1763776794138,0.002,2779.3,2779.2,0.4868]
[1763776794821,0.002,2779.3,2779.2,0.892304]
[1763776795134,0.002,2779.3,2779.2,1.370804]
[1763776795536,0.2668,2779.3,2779.2,0.405504]
[1763776796042,0.002,2779.3,2779.2,0.892304]
[1763776796208,0.002,2779.3,2779.2,4.04842992]
[1763776797031,0.002,2779.3,2779.2,1.71224308]
[1763776797237,0.002,2779.3,2779.2,0.892304]
[1763776797431,0.2668,2779.3,2779.2,0.405504]
[1763776797832,0.002,2779.3,2779.2,0.892304]
[1763776798225,0.002,2779.3,2779.2,1.370804]
[1763776798644,0.002,2779.3,2779.2,3.70699084]
[1763776798849,0.002,2779.3,2779.2,4.09987821]
[1763776799059,0.002,2779.3,2779.2,1.28519137]
[1763776799255,0.002,2779.3,2779.2,1.370804]
[1763776799836,0.002,2779.3,2779.2,0.892304]
[1763776800033,0.002,2779.3,2779.2,1.370804]
[1763776801041,0.002,2779.3,2779.2,3.70699084]
[1763776801447,0.002,2779.3,2779.2,3.74297241]
[1763776801664,0.002,2779.3,2779.2,14.24056165]
[1763776801955,0.002,2779.3,2779.2,13.40785808]
[1763776802153,0.002,2779.5,2779.3,0.405504]
[1763776802333,0.002,2779.5,2779.4,13.32586684]
[1763776802659,0.002,2779.5,2779.4,6.33724484]
[1763776802863,0.002,2779.5,2779.4,4.55453229]
[1763776803065,0.002,2779.5,2779.4,8.54928629]
[1763776803262,0.002,2779.5,2779.4,8.19630731]
[1763776803449,0.002,2779.5,2779.4,6.70414231]
[1763776804339,0.002,2779.5,2779.4,6.84727231]
[1763776804868,0.002,2779.5,2779.4,10.47559951]
[1763776805582,0.002,2779.5,2779.4,2.18236647]
[1763776805869,0.002,2779.5,2779.4,1.370804]
[1763776806044,0.002,2779.5,2779.4,0.9653]
[1763776806246,0.002,2779.5,2779.4,0.4868]
[1763776806567,0.002,2779.5,2779.4,1.03652116]
[1763776806771,0.002,2779.5,2779.4,1.51932116]
[1763776807472,0.002,2779.5,2779.4,9.41641414]
[1763776807674,0.002,2779.5,2779.4,5.12489129]
[1763776807847,0.002,2779.5,2779.4,5.16087027]
[1763776808974,0.002,2779.5,2779.4,20.07102391]
[1763776809164,0.002,2779.5,2779.4,18.33504893]
[1763776809863,0.002,2779.5,2779.4,20.17717893]
[1763776810195,0.002,2779.5,2779.4,2.41829129]
[1763776810392,0.002,2779.5,2779.4,1.11381716]
[1763776810986,0.002,2779.5,2779.4,0.63101716]
[1763776811355,0.002,2779.5,2779.4,0.14421716]
[1763776811555,0.2668,2779.5,2778.8,0.4838]
[1763776811968,0.2668,2779.5,2779.2,0.2668]
[1763776812499,0.0202,2779.3,2779.2,0.2668]
[1763776813059,0.0202,2779.3,2779.2,0.672304]
[1763776813257,0.002,2779.5,2779.3,0.405504]
[1763776813471,0.002,2779.5,2779.4,0.90298298]
[1763776813694,0.002,2779.5,2779.4,1.431074]
[1763776813857,0.002,2779.5,2779.4,1.913874]
[1763776815058,0.002,2779.5,2779.4,1.39509502]
[1763776815271,0.002,2779.5,2779.4,0.867004]
[1763776815561,0.002,2779.5,2779.4,1.349804]
[1763776816062,0.002,2779.5,2779.4,1.38578298]
[1763776816459,0.002,2779.5,2779.4,0.44148298]
[1763776816799,0.5316,2779.5,2779.2,0.2668]
[1763776816965,0.0202,2779.3,2778.8,0.001]
[1763776817166,0.0202,2779.3,2778.9,0.4838]
[1763776817706,0.2624,2779.0,2778.9,0.4838]
[1763776817994,0.2648,2779.3,2778.9,0.4838]
[1763776817995,0.2668,2779.5,2779.0,0.405504]
[1763776818359,0.2648,2779.1,2778.8,0.001]
[1763776818560,0.3531,2778.9,2778.8,0.001]
[1763776818988,0.3531,2778.9,2778.8,0.406504]
[1763776819362,0.3531,2778.9,2778.8,0.001]
[1763776819363,0.6179,2778.9,2778.8,0.001]
[1763776820500,0.3531,2778.9,2778.8,0.001]
[1763776820686,0.002,2779.5,2778.9,0.405504]
[1763776820868,0.5667031,2779.5,2778.9,0.405504]
[1763776821074,0.5667031,2779.5,2778.8,0.001]
[1763776821075,0.8315031,2779.5,2778.8,0.001]
[1763776822767,0.8315031,2779.5,2778.8,0.4848]
[1763776823205,0.8315031,2779.5,2778.8,0.52078675]
[1763776823509,0.2668,2779.5,2778.8,0.52078675]
[1763776823896,0.2668,2779.5,2778.8,0.4848]
[1763776825212,0.2648,2778.9,2778.8,0.890304]
[1763776825401,0.2668,2779.5,2778.8,0.890304]
[1763776825798,0.2668,2779.5,2778.8,0.406504]
[1763776826877,0.2648,2778.9,2778.8,0.001]
[1763776828493,0.002,2779.5,2778.8,0.4625]
[1763776828697,0.002,2779.5,2778.9,0.44148946]
[1763776828886,0.002,2779.5,2778.9,0.405504]
[1763776829682,0.002,2779.5,2778.8,0.001]
[1763776829683,0.2648,2779.0,2778.8,0.001]
[1763776829925,0.0202,2778.9,2778.8,0.001]
[1763776833731,0.285,2778.9,2778.8,0.001]
[1763776836542,0.76874488,2778.9,2778.8,0.001]
[1763776837248,0.285,2778.9,2778.8,0.001]
[1763776838812,0.0202,2778.9,2778.8,0.001]
[1763776839015,0.2668,2779.5,2778.8,0.001]
[1763776839240,0.2648,2778.9,2778.8,0.001]
[1763776839615,0.90699264,2779.1,2778.8,0.4686]
[1763776839815,0.091,2779.8,2779.0,0.4676]
[1763776840154,0.3558,2779.8,2779.1,0.405504]
[1763776840445,0.3558,2779.8,2779.1,0.598004]
[1763776840646,0.3558,2779.8,2779.1,1.056504]
[1763776840850,0.091,2779.8,2779.4,0.873104]
[1763776841225,0.002,2779.8,2779.4,1.331604]
[1763776841523,0.002,2779.8,2779.4,5.47476622]
[1763776841925,0.002,2779.8,2779.4,1.82931002]
[1763776842641,0.002,2779.8,2779.4,1.37081002]
[1763776843034,0.002,2779.8,2779.4,0.873104]
[1763776843845,0.002,2779.8,2779.0,0.45195602]
[1763776843846,0.2668,2779.5,2779.0,0.45195602]
[1763776844048,0.2668,2779.5,2778.8,0.001]
[1763776844049,0.5316,2779.5,2778.8,0.001]
[1763776844247,0.2668,2779.5,2778.8,0.406504]
[1763776844451,0.2668,2779.5,2778.9,0.405504]
[1763776844750,0.002,2779.5,2778.9,4.08694566]
[1763776844952,0.002,2779.5,2779.1,0.405504]
[1763776846936,0.2668,2779.5,2778.8,0.001]
[1763776847135,0.2648,2779.2,2778.8,0.001]
[1763776849656,0.002,2779.5,2779.0,0.405504]
[1763776849821,0.002,2779.5,2779.4,0.873104]
[1763776851055,0.002,2779.5,2779.4,5.42891622]
[1763776851255,0.002,2779.5,2779.4,1.78346002]
[1763776852055,0.002,2779.5,2779.4,5.42891622]
[1763776852256,0.002,2779.5,2779.4,5.4648952]
[1763776852443,0.002,2779.5,2779.4,5.42891622]
[1763776853249,0.002,2779.5,2779.4,5.4648952]
[1763776853862,0.002,2779.5,2779.4,5.42891622]
[1763776854772,0.002,2779.5,2779.4,12.45910322]
[1763776855066,0.002,2779.5,2779.4,23.92490122]
[1763776855267,0.002,2779.6,2779.5,18.316655]
[1763776855429,0.002,2779.8,2779.5,20.31714772]
[1763776855630,0.002,2779.8,2779.7,15.22517584]
[1763776856174,0.002,2780.1,2780.0,13.725006]
[1763776856480,0.002,2780.1,2780.0,16.4907682]
[1763776856698,0.002,2780.1,2780.0,18.15204502]
[1763776857036,0.002,2780.1,2780.0,22.35746202]
[1763776857229,0.002,2780.9,2780.1,0.405504]
[1763776857433,0.002,2780.9,2780.1,15.609271]
[1763776857735,0.002,2780.9,2780.1,16.8888264]
[1763776858158,0.002,2780.9,2780.1,20.1414434]
[1763776858466,0.002,2780.9,2780.1,19.1289434]
[1763776859286,0.002,2780.9,2780.1,14.8077134]
[1763776859634,0.002,2780.9,2780.3,0.405504]
[1763776859838,0.002,2780.9,2780.5,15.8004012]
[1763776860139,0.002,2780.9,2780.5,16.5775702]
[1763776860364,0.5643032,2783.0,2780.9,0.405504]
[1763776860574,1.93955033,2783.6,2780.9,0.405504]
[1763776860575,0.2648,2782.6,2781.4,0.405504]
[1763776860760,0.2648,2782.6,2781.3,14.370547]
[1763776860761,0.091,2782.7,2782.3,0.405504]
[1763776860963,0.091,2782.7,2781.1,0.1925]
[1763776860964,0.2668,2782.4,2781.1,0.1925]
[1763776861197,0.0162,2782.3,2781.4,0.405504]
[1763776861659,0.2643,2781.5,2780.9,3.6454562]
[1763776861867,0.0187,2781.4,2781.1,3.6454562]
[1763776862065,0.0187,2781.4,2781.2,0.405504]
[1763776863273,0.2618,2781.3,2780.9,3.6454562]
[1763776863467,0.2618,2781.3,2781.0,0.405504]
[1763776863673,0.2618,2781.3,2780.9,3.6454562]
[1763776863869,0.56426266,2781.5,2780.9,3.6454562]
[1763776864074,0.56426266,2781.5,2781.4,0.405504]
[1763776864582,0.83106266,2781.5,2781.2,0.405504]
[1763776864995,0.0162,2781.3,2781.0,0.405504]
[1763776865367,0.2643,2781.1,2780.5,3.7895819]
[1763776865566,0.83106266,2781.5,2780.7,3.6454562]
[1763776865767,0.83106266,2781.5,2780.8,0.405504]
[1763776866168,0.2668,2781.4,2780.8,0.405504]
[1763776867171,0.56426266,2781.5,2781.0,0.405504]
[1763776867695,0.2668,2781.1,2780.8,0.405504]
[1763776867912,0.0162,2781.0,2780.8,0.405504]
[1763776868068,0.2668,2781.4,2780.8,0.405504]
[1763776868268,0.56426266,2781.5,2781.0,4.0509602]
[1763776868569,0.56426266,2781.5,2781.1,0.405504]
[1763776868793,0.56426266,2781.5,2781.1,1.080204]
[1763776870171,0.56426266,2781.5,2781.4,0.897404]
[1763776870478,0.56426266,2781.5,2781.2,4.1562119]
[1763776870479,0.56423158,2781.7,2781.5,0.405504]
[1763776870667,0.56423158,2781.7,2781.1,0.405504]
[1763776870869,0.2668,2781.8,2781.1,0.405504]
[1763776871175,0.63134562,2782.2,2781.1,0.91626099]
[1763776871368,0.002,2781.2,2781.1,0.91626099]
[1763776871607,0.002,2781.2,2781.1,0.880304]
[1763776871915,0.002,2781.2,2781.1,1.40816099]
[1763776872084,0.002,2781.2,2781.1,1.93351271]
[1763776872399,0.002,2781.2,2781.1,1.89755572]
[1763776873137,0.002,2781.2,2781.1,0.93085572]
[1763776873267,0.002,2781.2,2781.0,0.405504]
[1763776873469,0.002,2781.2,2781.1,0.897404]
[1763776875884,0.002,2781.2,2781.1,5.05361719]
[1763776877069,0.002,2781.2,2781.1,5.0176602]
[1763776877276,0.002,2781.2,2781.1,4.5428602]
[1763776877474,0.002,2781.2,2781.1,5.39813622]
[1763776878000,0.002,2781.2,2781.1,5.87293622]
[1763776878311,0.002,2781.2,2781.1,5.90889321]
[1763776879584,0.24121801,2782.1,2781.2,0.405504]
[1763776879786,0.24121801,2782.1,2781.5,0.405504]
[1763776880199,0.24121801,2782.1,2781.3,0.405504]
[1763776880409,0.24121801,2782.1,2781.3,1.28405722]
[1763776880609,0.99799264,2782.7,2781.3,4.92951342]
[1763776880918,0.2412,2781.4,2781.1,0.90699264]
[1763776881119,0.2412,2781.3,2780.7,4.0099]
[1763776881420,0.2412,2781.3,2780.9,0.40109]
[1763776881606,0.2412,2781.0,2780.6,3.6454562]
[1763776881811,0.0162,2780.9,2780.6,3.6454562]
[1763776882117,0.0162,2780.9,2780.7,0.405504]
[1763776882421,0.2412,2781.5,2780.7,0.405504]
[1763776882998,0.3914,2780.9,2780.5,0.001]
[1763776883328,1.16719184,2780.9,2780.5,0.001]
[1763776883511,6.53280475,2780.9,2780.5,0.001]
[1763776883911,0.90699264,2780.8,2780.5,0.001]
[1763776884112,4.59394884,2780.6,2780.5,0.001]
[1763776884312,0.90699264,2780.5,2780.2,0.001]
[1763776884511,1.14619264,2780.3,2780.2,0.001]
[1763776884727,1.92161698,2780.3,2780.2,0.001]
[1763776884930,2.16281698,2780.3,2780.2,0.001]
[1763776886554,0.2392,2780.3,2780.2,0.001]
[1763776886838,1.38739264,2780.3,2780.2,0.001]
[1763776887026,1.89067752,2780.3,2780.2,0.001]
[1763776889160,0.98368488,2780.3,2780.2,0.001]
[1763776889453,0.4804,2780.3,2780.2,0.001]
[1763776890012,1.38739264,2780.3,2780.2,0.001]
[1763776890504,0.4804,2780.3,2780.2,0.001]
[1763776891706,0.2392,2780.3,2780.2,0.001]
[1763776894644,2.57350546,2782.1,2780.2,0.4929]
[1763776894645,0.2412,2780.8,2780.2,0.4929]
[1763776894824,1.61615953,2780.9,2780.2,0.001]
[1763776895023,0.2289,2780.3,2780.2,0.001]
[1763776895224,1.61615953,2780.9,2780.2,0.001]
[1763776895423,0.2289,2780.3,2780.2,0.001]
[1763776895652,1.52172374,2780.3,2780.2,0.001]
[1763776896749,1.75062374,2780.3,2780.2,0.001]
[1763776897313,0.2289,2780.3,2780.2,0.001]
[1763776898169,0.2289,2780.8,2780.2,0.001]
[1763776898373,0.2289,2780.3,2780.2,0.001]
[1763776898568,0.2289,2780.8,2780.2,0.001]
[1763776899270,0.71989292,2780.8,2780.2,0.001]
[1763776900695,0.2289,2780.3,2780.2,0.001]
[1763776901065,1.03252092,2780.3,2780.2,0.001]
[1763776901560,1.92929341,2780.3,2780.2,0.001]
[1763776903545,1.02230077,2780.3,2780.2,0.001]
[1763776904288,1.58839136,2780.3,2780.2,0.001]
[1763776904482,1.57817121,2780.3,2780.2,0.001]
[1763776906985,1.58839136,2780.3,2780.2,0.001]
[1763776908485,1.57817121,2780.3,2780.2,0.001]
[1763776909355,2.3520963,2780.3,2780.2,0.001]
[1763776909586,1.57817121,2780.3,2780.2,0.001]
[1763776909974,0.97545054,2780.1,2779.3,0.43172968]
[1763776910295,0.1976,2780.0,2779.3,0.43172968]
[1763776911304,0.56456765,2779.9,2779.3,0.43172968]
[1763776911507,0.56456765,2779.9,2779.4,0.405504]
[1763776911712,0.56456765,2779.9,2779.8,0.4925]
[1763776912080,0.56456765,2779.9,2779.8,0.9544]
[1763776912280,1.86950585,2780.7,2779.8,0.9544]
[1763776912603,1.66384733,2780.6,2779.9,0.4619]
[1763776912822,0.77679558,2780.5,2779.9,0.4619]
[1763776913007,0.77679558,2780.4,2779.9,0.4619]
[1763776913210,0.77679558,2780.5,2779.9,0.4619]
[1763776913406,0.7770756,2780.4,2779.9,0.4619]
[1763776913608,4.59192419,2780.8,2779.9,0.4619]
[1763776913609,0.7770756,2780.5,2779.9,0.4619]
[1763776913782,0.7770756,2780.4,2780.3,0.4925]
[1763776913984,1.68406824,2780.7,2780.3,0.4925]
[1763776914189,1.40467484,2780.6,2780.3,0.4925]
[1763776914385,0.7770756,2780.5,2780.3,0.4925]
[1763776914610,0.62759924,2780.6,2780.3,0.4925]
[1763776914911,0.77710204,2780.5,2780.0,0.4619]
[1763776915112,0.2591,2780.1,2779.6,0.4619]
[1763776915319,0.77715295,2780.3,2779.7,0.405504]
[1763776915818,0.01022015,2780.2,2779.7,0.405504]
[1763776916226,0.01022015,2780.2,2779.8,0.405504]
[1763776917385,0.01022015,2780.2,2779.2,0.405504]
[1763776917586,0.2591,2780.3,2779.5,0.405504]
[1763776917894,0.2591,2780.3,2779.4,0.4619]
[1763776917895,0.77716069,2780.2,2779.4,0.4619]
[1763776918100,0.90699264,2780.1,2779.4,0.4619]
[1763776918420,0.53135643,2780.0,2779.2,0.405504]
[1763776918602,0.79045643,2780.0,2779.1,0.6618]
[1763776919117,0.79045643,2780.0,2779.2,0.405504]
[1763776919302,1.56368618,2780.0,2779.2,0.405504]
[1763776919610,0.24706788,2779.9,2779.2,0.405504]
[1763776920819,1.16609264,2779.8,2779.1,0.1999]
[1763776921141,1.17631279,2779.8,2779.1,0.1999]
[1763776921355,1.68159196,2779.8,2779.1,0.1999]
[1763776921485,1.52702572,2780.6,2779.7,0.4925]
[1763776921684,0.77696915,2780.5,2780.2,0.1988]
[1763776921916,0.77696915,2780.5,2779.8,0.9544]
[1763776921917,0.01022015,2780.4,2779.8,0.9544]
[1763776922083,0.77696915,2780.5,2779.9,0.405504]
[1763776922613,0.77696915,2780.5,2779.9,0.4619]
[1763776922810,0.90699264,2780.7,2779.9,0.4619]
[1763776922983,0.77688369,2780.6,2779.9,0.4619]
[1763776923186,0.77688616,2780.5,2779.7,0.4619]
[1763776923898,1.6838788,2780.4,2779.7,0.4619]
[1763776924096,0.77688616,2780.3,2779.7,0.4619]
[1763776924510,0.90699264,2780.4,2779.7,0.4619]
[1763776924707,0.0514,2780.3,2779.1,0.2009]
[1763776925005,1.06598315,2780.3,2779.2,0.405504]
[1763776925209,0.80748315,2780.3,2779.2,0.405504]
[1763776925523,0.002,2780.3,2780.2,0.4959]
[1763776925822,0.002,2780.3,2779.1,0.2009]
[1763776926010,0.90699264,2779.8,2779.1,0.2009]
[1763776926317,0.45364036,2779.7,2779.1,0.2009]
[1763776926733,0.90699264,2779.5,2779.1,0.001]
[1763776927193,0.45364036,2779.7,2779.1,0.187]
[1763776927825,0.77703866,2779.8,2779.1,0.6486]
[1763776928331,0.77703866,2779.8,2779.2,0.4616]
[1763776929783,3.88791098,2780.0,2779.2,0.4616]
[1763776930118,0.77689576,2779.9,2779.2,0.4616]
[1763776930487,0.90699264,2780.1,2779.3,0.405504]
[1763776930686,0.77686339,2780.0,2779.3,0.405504]
[1763776930911,0.77686339,2780.0,2779.4,0.4616]
[1763776932495,1.09414322,2780.1,2779.4,0.4616]
[1763776932723,0.002,2780.3,2779.5,0.405504]
[1763776933219,0.77879034,2780.3,2779.6,0.4616]
[1763776933428,0.002,2780.3,2779.6,0.4616]
[1763776934125,0.77877426,2780.3,2779.6,0.4616]
[1763776935226,0.77877426,2780.3,2779.7,0.405504]
[1763776935398,0.77877426,2780.3,2780.2,0.4959]
[1763776935399,0.002,2780.3,2780.2,0.4959]
[1763776937343,0.002,2780.3,2780.1,0.186]
[1763776937949,0.2585,2780.2,2778.8,0.4969]
[1763776938153,0.2585,2780.2,2779.5,0.405504]
[1763776938771,3.63963113,2780.1,2779.5,0.4616]
[1763776938967,0.90699264,2780.0,2779.3,0.4616]
[1763776939135,0.45466238,2779.9,2779.1,0.187]
[1763776939334,0.45466238,2779.9,2779.1,0.6486]
[1763776939571,0.45466238,2779.9,2779.1,0.62017951]
[1763776939783,0.0559,2779.8,2779.1,0.62017951]
[1763776941475,1.19289264,2779.7,2778.9,0.001]
[1763776941675,0.48782036,2779.6,2778.9,0.001]
[1763776942065,0.77372036,2779.6,2779.0,0.001]
[1763776943274,0.48782036,2779.6,2779.1,0.186]
[1763776943662,0.90699264,2779.7,2779.2,0.4616]
[1763776944468,1.19289264,2779.7,2779.1,0.186]
[1763776944778,1.19289264,2779.7,2779.0,0.001]
[1763776945077,0.90699264,2779.7,2779.1,0.186]
[1763776945249,0.48782036,2779.6,2779.1,0.186]
[1763776946901,0.48782036,2779.6,2779.5,0.4959]
[1763776947263,0.48782036,2779.6,2779.1,0.6476]
[1763776947468,0.90699264,2779.7,2779.2,0.4616]
[1763776948077,0.45466238,2779.9,2779.6,0.4959]
[1763776948287,0.77637121,2780.1,2779.7,0.4959]
[1763776949283,0.77637121,2780.1,2779.7,0.9575]
[1763776950282,0.77637121,2780.1,2779.7,0.4959]
[1763776950478,0.90699264,2780.2,2779.4,0.4616]
[1763776952569,0.56461941,2780.1,2779.4,0.4616]
[1763776952759,4.18292675,2780.1,2779.4,0.4616]
[1763776954205,4.13906087,2780.1,2779.4,0.4616]
[1763776955000,4.43518102,2780.1,2779.3,0.405504]
[1763776955204,4.42496087,2780.1,2779.3,0.900904]
[1763776955699,4.42496087,2780.1,2779.4,0.4767]
[1763776956386,0.56465271,2780.0,2779.4,0.4767]
[1763776957265,1.06361407,2780.0,2779.1,0.6627]
[1763776957503,3.92993445,2779.9,2779.1,0.6627]
[1763776957677,3.92993445,2779.9,2779.1,0.186]
[1763776957883,3.92993445,2779.9,2779.2,0.4767]
[1763776959375,0.90699264,2779.8,2779.2,0.4767]
[1763776959572,0.46532286,2779.7,2779.1,0.187]
[1763776960195,0.90699264,2779.8,2779.1,0.6637]
[1763776960510,0.90699264,2779.8,2779.6,0.4632]
[1763776960870,1.06361407,2780.0,2779.7,0.9399]
[1763776961071,0.56465271,2780.0,2779.8,0.4632]
[1763776962486,0.56465271,2780.0,2779.9,0.9399]
[1763776963083,0.002,2780.1,2779.9,0.9399]
[1763776963279,0.002,2780.1,2780.0,0.9399]
[1763776965373,0.002,2780.1,2780.0,1.345404]
[1763776966308,0.002,2780.1,2780.0,1.85876883]
[1763776966825,0.002,2780.1,2780.0,5.50280328]
[1763776968613,0.90699264,2781.5,2780.1,1.080304]
[1763776968829,0.90699264,2781.5,2780.3,0.405504]
[1763776969026,3.64403445,2781.8,2780.5,0.405504]
[1763776969180,0.90699264,2781.7,2780.7,0.405504]
[1763776969375,0.90699264,2781.5,2780.7,0.405504]
[1763776969609,0.90699264,2781.5,2780.9,0.405504]
[1763776969798,0.01022015,2781.4,2780.9,0.405504]
[1763776970000,0.2859,2781.0,2780.6,0.405504]
[1763776970204,0.14932015,2780.9,2780.2,0.4767]
[1763776970403,0.1391,2780.9,2780.3,0.405504]
[1763776970778,0.1391,2780.9,2780.4,0.405504]
[1763776971011,0.1391,2780.9,2780.4,0.882204]
[1763776971512,0.1391,2780.9,2780.5,0.4767]
[1763776973104,0.1391,2780.9,2780.4,0.405504]
[1763776973496,0.1391,2780.9,2780.4,0.882204]
[1763776974927,0.1391,2780.9,2780.4,0.405504]
[1763776975130,0.1391,2780.9,2780.5,0.4767]
[1763776975431,0.1391,2780.9,2780.4,0.405504]
[1763776975738,0.1391,2780.9,2780.4,0.882204]
[1763776976096,0.1391,2780.9,2780.1,0.1981]